{"text_format":"1","workbook":"xlsx","n_sheets":2,"sheets":["FRR","Hoja3"],"not_rendered":{"charts":0,"images":0,"macros":1,"external_links":0,"defined_names":8,"comments":1,"pivot_tables":0},"unopened":[],"bounds":{"document_bytes":16777216,"sheet_cells":100000,"rows_first":2000,"rows_last":500,"rows_between":2000,"halvings":0,"cell_chars":16384,"cell_head_chars":4096},"cells_cut":0,"cells_raw":0,"read":"whole","date_system":"1900"}

{"sheet":"FRR","index":0,"n_rows":113,"n_cols":12,"rows_kept":113,"cut":false,"hidden":false,"merged":[]}
[]
[null,"PLAN ANUAL DE ADQUISICIONES"]
[]
[null,"A. INFORMACIÓN GENERAL DE LA ENTIDAD"]
[null,"Nombre","FONDO ROTATORIO DE LA REGISTRADURÍA NACIONAL DEL ESTADO CIVIL"]
[null,"Dirección","Avenida el dorado #51-50 Bogotá D.C."]
[null,"Teléfono",2202880]
[null,"Página web","www.registraduria.gov.co"]
[null,"Misión y Visión","MISIÓN: Es misión de la Registraduría Nacional del Estado Civil garantizar la organización y transparencia del proceso electoral, la oportunidad y confiabilidad de los escrutinios y resultados electorales, contribuir al fortalecimiento de la democracia mediante su neutralidad y objetividad, promover la participación social en la cual se requiera la expresión de la voluntad popular mediante sistemas de tipo electoral en cualquiera de sus modalidades, así como promover y garantizar, en cada evento legal en que deba registrarse la situación civil de las personas, que se registren tales eventos, se disponga de su información a quien deba legalmente solicitarla, se certifique mediante los instrumentos idóneos establecidos por las disposiciones legales y se garantice su confiabilidad y seguridad plenas. \n\nVISIÓN : Ser reconocidos como la institución líder en garantizar los más altos estándares técnicos, brindando confianza a los colombianos como protectores de sus derechos y facilitadores de sus decisiones, en atención a las dinámicas sociales y territoriales de la nación."]
[null,"Perspectiva Estratégica","1. Fortalecer el proceso electoral a través de estrategias pedagógicas y educativas, fomentando el mejoramiento continuo, la adopción de herramientas tecnológicas de asistencia, y garantizando la publicación integral y accesible de información, con el objetivo de incrementar la confianza en la institución y facilitar la participación ciudadana.\n2. Aumentar la confianza y satisfacción de los ciudadanos mediante el acceso a trámites y servicios, garantizando una atención de calidad, ágil y transparente con enfoque diferencial mediante la puesta en marcha de un nuevo modelo de servicio.\n3. Transformar el proceso de registro civil e identificación mediante un enfoque centrado en las necesidades y derechos de las personas a través de la tecnología para asegurar la integridad, confidencialidad, disponibilidad y la interoperabilidad de la información, garantizando la oferta institucional en todo el territorio nacional.\n4. Posicionar en el ámbito nacional e internacional a la RNEC, como una entidad con altos niveles de transparencia, confiabilidad, y efectividad, a través de alianzas estratégicas y cooperación técnica.\n5. Fortalecer las capacidades, competencias y valores de los servidores de la RNEC mediante la capacitación, sensibilización y el aprovechamiento del uso de las tecnologías de la información y las comunicaciones (TIC).\n6. Fortalecer la toma de decisiones y mejoramiento de los procesos a través del desarrollo y utilización de los modelos analíticos y aplicación de técnicas de inteligencia artificial."]
[null,"Información de contacto","Ubicación: Distrito Capital de Bogotá teléfono: 2202880"]
[null,"Valor total del PAA",{"$f":"+H113","v":194050636292}]
[null,"Límite de contratación menor cuantía",787907250]
[null,"Límite de contratación mínima cuantía",78790725]
[null,"Fecha de última actualización del PAA","7 de abril de 2026"]
[]
[null,"Cantidad de filas adquisiciones planeadas:",null,"Cantidad de filas necesidades adicionales:"]
[null,1,null,1]
[]
[null,"B. ADQUISICIONES PLANEADAS"]
[null,"Códigos UNSPSC","Descripción","Fecha estimada de inicio de proceso de selección (mes)","Duración estimada del contrato (número de mes(es))","Modalidad de selección ","Fuente de los recursos","Valor total estimado","Valor estimado en la vigencia actual","¿Se requieren vigencias futuras?","Estado de solicitud de vigencias futuras","Datos de contacto del responsable"]
[null,80131500,"Arrendamiento de bienes inmuebles por fuente de financiación de la Registraduría Nacional del estado Civil para el funcionamiento de las sedes en territorio nacional.","Enero",6,"CONTRATACIÓN_DIRECTA","RECURSOS PROPIOS",1011817163,1011817163,"No","N. A. ","Dirección Administrativa - Gestión de Recursos Físicos\n Telefono:2202880 ext 1198 \nCorreo: fhbenitez@registraduria.gov.co"]
[null,"43232306\n55111506","Adquirir licencia de software bajo la modalidad tipo suscripción deconstruplan.net y de la revista Construdata para la Coordinación de Mantenimiento y Construcciones de la Registraduría Nacional del Estado Civil, sede CAN.","Enero",11,"CONTRATACIÓN_DIRECTA","RECURSOS PROPIOS",9963200,9963200,"No","N. A. ","Dirección Administrativa - Grupo de Mantenimiento y Construcciones\nTeléfono: 2202880 ex.t 1308\nCorreo:ccsepulveda@registraduria.gov.co"]
[null,"72151704\n43233200\n83112600\n72102900\n72103300","Renovación de licencias My Intelli, soporte técnico y mantenimiento preventivo y correctivo incluida la bolsa de repuestos para el sistema de control de acceso ubicado en las instalaciones de la Registraduría Nacional del Estado Civil, Sede CAN.","Enero",10,"CONTRATACIÓN_DIRECTA","RECURSOS PROPIOS",60000000,60000000,"No","N. A. ","Dirección Administrativa - Asesoría de Seguridad\nTeléfono: 2202880 ext. 1060 \nCorreo: asesoriaseguridad@registraduria.gov.co"]
[null,86111604,"Prestar los servicios para el desarrollo de cursos virtuales asincrónicos enfocados en el desarrollo de habilidades y competencias transversales, dirigidos a los servidores de la Registraduría Nacional del Estado Civil tanto del nivel central como del nivel desconcentrado.","Enero",12,"CONTRATACIÓN_DIRECTA","RECURSOS PROPIOS",299400000,299400000,"No","N. A. ","Gerencia del Talento Humano \nTeléfono: 2202880 Ext. 1467\nCorreo: gerenciadeltalentohumano@registraduria.gov.co"]
[null,86111604,"Prestar los servicios para el desarrollo de cursos virtuales asincrónicos, dirigidos a los servidores de la Registraduría Nacional del Estado Civil tanto del nivel central como del nivel desconcentrado.","Enero",12,"CONTRATACIÓN_DIRECTA","RECURSOS PROPIOS",334703600,334703600,"No","N. A. ","Gerencia del Talento Humano \nTeléfono: 2202880 Ext. 1467\nCorreo: gerenciadeltalentohumano@registraduria.gov.co"]
[null,80111620,"Prestación de servicios profesionales de Ingeniero Civil para apoyar la Coordinación de Mantenimiento y Construcciones en los componentes económicos y técnicos del proyecto de inversión 2026.","Enero",11,"CONTRATACIÓN_DIRECTA","RECURSOS PROPIOS",110000000,{"$f":"+H27","v":110000000},"No","N. A. ","Dirección Administrativa - Grupo de Mantenimiento y Construcciones\nTeléfono: 2202880 ex.t 1308\nCorreo:ccsepulveda@registraduria.gov.co"]
[null,"81111806\n 81111811\n81111812\n81111820\n81112002","Contratar el servicio de actualización, mantenimiento y soporte a distancia del sistema de información SEVEN-ERP de la Registraduría Nacional del Estado Civil.","Enero",12,"CONTRATACIÓN_DIRECTA","RECURSOS PROPIOS",251624443,251624443,"No","N. A. ","Dirección Administrativa - Grupo Almacén e Inventarios\nTeléfono: 2202880 ex.t 1040\nCorreo: dasanchezr@registraduria.gov.co"]
[null,80111620,"Prestación de servicios profesionales de apoyo investigativo al Centro de Estudios en Democracia y Asuntos Electorales – CEDAE.","Enero",11,"CONTRATACIÓN_DIRECTA","RECURSOS PROPIOS",162007992,{"$f":"+H29","v":162007992},"No","N. A. ","Centro de Estudios en Democracia y Asuntos Electorales - CEDAE\nTeléfono: 2202880 ex.t 1378\nCorreo:  cedae@registraduria.gov.co"]
[null,73152108,"Contratar la prestación del servicio de mantenimiento preventivo y correctivo incluida bolsa de repuestos para la planta eléctrica marca PERKINS, modelo 2806c – E16TAG2, ubicada en la Registraduría Nacional del Estado Civil, Sede CAN.","Enero",12,"CONTRATACIÓN_DIRECTA","RECURSOS PROPIOS",30000000,30000000,"No","N. A. ","Dirección Administrativa - Grupo de Mantenimiento y Construcciones\nTeléfono: 2202880 ex.t 1308\nCorreo:ccsepulveda@registraduria.gov.co"]
[null,80111600,"Prestación de servicios profesionales para brindar asesoría jurídica al despacho del Registrador Nacional del Estado Civil desde el Centro de Estudios en Democracia y Asuntos Electorales (CEDAE), en materia electoral y temas de género, orientados a la toma de decisiones estratégicas, la prevención de riesgos jurídicos y el fortalecimiento institucional de la Entidad.","Enero",12,"CONTRATACIÓN_DIRECTA","RECURSOS PROPIOS",181198236,181198236,"No","N. A. ","Centro de Estudios en Democracia y Asuntos Electorales - CEDAE\nTeléfono: 2202880 ex.t 1378\nCorreo:  cedae@registraduria.gov.co"]
[null,"72101506\n72154010","Contratar la prestación del servicio de mantenimiento preventivo y correctivo incluida bolsa de repuestos de dos (2) ascensores tipo pasajero marca OTIS modelo GEN2 XIZI, ubicados en la Registraduría Nacional del Estado Civil sede CAN Av. Calle 26 No. 51-50.","Enero",12,"CONTRATACIÓN_DIRECTA","RECURSOS PROPIOS",42000000,42000000,"No","N. A. ","Dirección Administrativa - Grupo de Mantenimiento y Construcciones\nTeléfono: 2202880 ex.t 1308\nCorreo:ccsepulveda@registraduria.gov.co"]
[null,"80111620\n81131501","Prestación de servicios profesionales de apoyo a la gestión del CEDAE, orientados al fortalecimiento del Observatorio Electoral de la Registraduría Nacional del Estado Civil.","Enero",10,"CONTRATACIÓN_DIRECTA","RECURSOS PROPIOS",143534730,143534730,"No","N. A. ","Centro de Estudios en Democracia y Asuntos Electorales - CEDAE\nTeléfono: 2202880 ex.t 1378\nCorreo:  cedae@registraduria.gov.co"]
[null,80111620,"Prestación de servicios profesionales de arquitecto para apoyar la Coordinación de Mantenimiento y Construcciones en las actividades previstas en el proyecto de inversión 2026 en la zona 1.","Enero",11,"CONTRATACIÓN_DIRECTA","RECURSOS PROPIOS",145385350,145385350,"No","N. A. ","Dirección Administrativa - Grupo de Mantenimiento y Construcciones\nTeléfono: 2202880 ex.t 1308\nCorreo:ccsepulveda@registraduria.gov.co"]
[null,80111620,"Prestación de servicios profesionales de Ingeniero Civil para apoyar la Coordinación de Mantenimiento y Construcciones en las actividades previstas en el proyecto de inversión 2026 en la zona 2.","Enero",11,"CONTRATACIÓN_DIRECTA","RECURSOS PROPIOS",145385350,145385350,"No","N. A. ","Dirección Administrativa - Grupo de Mantenimiento y Construcciones\nTeléfono: 2202880 ex.t 1308\nCorreo:ccsepulveda@registraduria.gov.co"]
[null,80111620,"Prestación de servicios profesionales de Ingeniero Civil para apoyar la Coordinación de Mantenimiento y Construcciones en las actividades previstas en el proyecto de inversión 2026 en la zona 3.","Enero",11,"CONTRATACIÓN_DIRECTA","RECURSOS PROPIOS",145385350,145385350,"No","N. A. ","Dirección Administrativa - Grupo de Mantenimiento y Construcciones\nTeléfono: 2202880 ex.t 1308\nCorreo:ccsepulveda@registraduria.gov.co"]
[null,80111620,"Prestación de servicios profesionales de Ingeniero Civil para apoyar la Coordinación de Mantenimiento y Construcciones en las actividades previstas en el proyecto de inversión 2026 en la zona 5.","Enero",11,"CONTRATACIÓN_DIRECTA","RECURSOS PROPIOS",110000000,110000000,"No","N. A. ","Dirección Administrativa - Grupo de Mantenimiento y Construcciones\nTeléfono: 2202880 ex.t 1308\nCorreo:ccsepulveda@registraduria.gov.co"]
[null,"90111501\n90111601\n90111603\n90121502","Prestar los servicios de apoyo logístico para la realización de actividades de formación presencial dirigida a los servidores públicos de la Registraduría Nacional del Estado Civil del Nivel Central y Desconcentrado.","Enero",12,"CONTRATACIÓN_DIRECTA","RECURSOS PROPIOS",1579000000,1579000000,"No","N. A. ","Gerencia del Talento Humano \nTeléfono: 2202880 Ext. 1467\nCorreo: gerenciadeltalentohumano@registraduria.gov.co"]
[null,"81111806\n81111811\n81111812\n81111820\n81112202\n81112204\n43231505","Contratar el servicio de actualización a los módulos licenciados del sistema KACTUS, soporte y mantenimiento del aplicativo KACTUS y capacitación a usuarios de la Registraduría Nacional del Estado Civil. ","Enero",12,"CONTRATACIÓN_DIRECTA","RECURSOS PROPIOS",683059600,683059600,"No","N. A. ","Gerencia del Talento Humano \nTeléfono: 2202880 Ext. 1467\nCorreo: gerenciadeltalentohumano@registraduria.gov.co"]
[null,80111620,"Prestación de servicios profesionales de Ingeniero Civil para apoyar la Coordinación de Mantenimiento y Construcciones en las actividades previstas en el proyecto de inversión 2026 en la zona 4.","Enero",11,"CONTRATACIÓN_DIRECTA","RECURSOS PROPIOS",125914800,125914800,"No","N. A. ","Dirección Administrativa - Grupo de Mantenimiento y Construcciones\nTeléfono: 2202880 ex.t 1308\nCorreo:ccsepulveda@registraduria.gov.co"]
[null,80111620,"Prestación de servicios para la traducción a la lengua Emberá Katío de documentos y material pedagógico definido por el Centro de Estudios en Democracia y Asuntos Electorales (CEDAE).","Enero",1,"CONTRATACIÓN_DIRECTA","RECURSOS PROPIOS",6000000,6000000,"No","N. A. ","Centro de Estudios en Democracia y Asuntos Electorales - CEDAE\nTeléfono: 2202880 ex.t 1378\nCorreo:  cedae@registraduria.gov.co"]
[null,80111620,"Prestación de servicios para la traducción a la lengua Palenquera de documentos y material pedagógico definido por el Centro de Estudios en Democracia y Asuntos Electorales (CEDAE).","Enero",1,"CONTRATACIÓN_DIRECTA","RECURSOS PROPIOS",6000000,6000000,"No","N. A. ","Centro de Estudios en Democracia y Asuntos Electorales - CEDAE\nTeléfono: 2202880 ex.t 1378\nCorreo:  cedae@registraduria.gov.co"]
[null,80111620,"Prestación de servicios para la traducción a la lengua Emberá Chamí de documentos y material pedagógico definido por el Centro de Estudios en Democracia y Asuntos Electorales (CEDAE).","Enero",1,"CONTRATACIÓN_DIRECTA","RECURSOS PROPIOS",3711666,{"$f":"+H43","v":3711666},"No","N. A. ","Centro de Estudios en Democracia y Asuntos Electorales - CEDAE\nTeléfono: 2202880 ex.t 1378\nCorreo:  cedae@registraduria.gov.co"]
[null,80111620,"Prestar los servicios para la traducción a la lengua Creole de documentos y material pedagógico definido por el Centro de Estudios en Democracia y Asuntos Electorales (CEDAE).","Enero",1,"CONTRATACIÓN_DIRECTA","RECURSOS PROPIOS",6000000,6000000,"No","N. A. ","Centro de Estudios en Democracia y Asuntos Electorales - CEDAE\nTeléfono: 2202880 ex.t 1378\nCorreo:  cedae@registraduria.gov.co"]
[null,"80111620\n82141504\n82141505","Prestar los servicios profesionales para el diseño y la diagramación de material pedagógico interactivo orientado a promover la comprensión y apropiación de temas relacionados con el estado civil de las personas, la participación y la democracia.","Enero",4,"CONTRATACIÓN_DIRECTA","RECURSOS PROPIOS",30873207,{"$f":"+H45","v":30873207},"No","N. A. ","Centro de Estudios en Democracia y Asuntos Electorales - CEDAE\nTeléfono: 2202880 ex.t 1378\nCorreo:  cedae@registraduria.gov.co"]
[null,80111620,"Prestar servicios para la traducción a la lengua wayuu de documentos y material pedagógico definido por el Centro de Estudios en Democracia y Asuntos Electorales (CEDAE).","Enero",1,"CONTRATACIÓN_DIRECTA","RECURSOS PROPIOS",6000000,6000000,"No","N. A. ","Centro de Estudios en Democracia y Asuntos Electorales - CEDAE\nTeléfono: 2202880 ex.t 1378\nCorreo:  cedae@registraduria.gov.co"]
[null,80111620,"Prestar los servicios profesionales para brindar asesoría jurídica al despacho del Registrador Nacional del Estado Civil desde el Centro de Estudios en Democracia y Asuntos Electorales (CEDAE), para el fortalecimiento de la transparencia y legitimidad de los procesos democráticos.","Enero",10,"CONTRATACIÓN_DIRECTA","RECURSOS PROPIOS",182690000,{"$f":"H47","v":182690000},"No","N. A. ","Centro de Estudios en Democracia y Asuntos Electorales - CEDAE\nTeléfono: 2202880 ex.t 1378\nCorreo:  cedae@registraduria.gov.co"]
[null,73152108,"Contratar el servicio de mantenimiento preventivo y correctivo incluida bolsa de repuestos para las Plantas eléctricas marca Cummins, ubicadas en la Registraduría Nacional del Estado Civil sede CAN.","Enero",12,"CONTRATACIÓN_DIRECTA","RECURSOS PROPIOS",38492058,{"$f":"+H48","v":38492058},"No","N. A. ","Dirección Administrativa - Grupo de Mantenimiento y Construcciones\nTeléfono: 2202880 ex.t 1308\nCorreo:ccsepulveda@registraduria.gov.co"]
[null,"72101506\n72154010","Contratar la prestación del servicio de mantenimiento preventivo y correctivo incluida bolsa de repuestos del ascensor tipo pasajero marca MITSUBISHI, ubicado en la Registraduría Nacional del Estado Civil sede CAN Av. Calle 26 No. 51-50, en las condiciones técnicas, de calidad y cantidades requeridas","Enero",12,"CONTRATACIÓN_DIRECTA","RECURSOS PROPIOS",32000000,{"$f":"+H49","v":32000000},"No","N. A. ","Dirección Administrativa - Grupo de Mantenimiento y Construcciones\nTeléfono: 2202880 ex.t 1308\nCorreo:ccsepulveda@registraduria.gov.co"]
[null,72103302,"Prestar el servicio de mantenimiento preventivo y correctivo del Sistema Contact Center implementado en la Registraduría Nacional del Estado Civil en su sede CAN Av. Calle 26 No. 51-50.","Enero",12,"CONTRATACIÓN_DIRECTA","RECURSOS PROPIOS",184653052,{"$f":"+H50","v":184653052},"No","N. A. ","Dirección Administrativa - Grupo de Mantenimiento y Construcciones\nTeléfono: 2202880 ex.t 1308\nCorreo:ccsepulveda@registraduria.gov.co"]
[null,"80141607\n80141902\n90111601\n90111501\n90121502","Prestar los servicios de apoyo logístico requeridos para la ejecución de las actividades de capacitación en temas de democracia y participación a llevarse a cabo en el territorio nacional por el Centro de Estudios en Democracia y Asuntos Electorales – CEDAE.","Enero",12,"CONTRATACIÓN_DIRECTA","RECURSOS PROPIOS",1556473250,{"$f":"+H51","v":1556473250},"No","N. A. ","Centro de Estudios en Democracia y Asuntos Electorales - CEDAE\nTeléfono: 2202880 ex.t 1378\nCorreo:  cedae@registraduria.gov.co"]
[null,"43232304\n43232403\n43231507\n43211502","Prestación de servicios para el desarrollo, implementación y puesta en operación de la solución y componentes Core del Registro Civil en Línea de Nacimiento a nivel central.","Enero",12,"CONTRATACIÓN_DIRECTA","RECURSOS PROPIOS",33479670847,{"$f":"+H52","v":33479670847},"No","N. A. ","Registraduría Delegada para el Registro Civil y la Identificación y la Gerencia de Informática\nTeléfono: 2202880\nCorreo:gerenciainformatica@registraduria.gov.co"]
[null,"81111811\n81111812\n81112205\n80101507\n81102702","Prestar el servicio de soporte al Sistema del Archivo Nacional de identificación ANI y del Sistema de Registro Civil Web SRCWEB de la Registraduría Nacional del Estado Civil.","Enero",8,"CONTRATACIÓN_DIRECTA","RECURSOS PROPIOS",1324644775,1324644775,"No","N. A. ","Gerencia de Informática\nTeléfono: 2202880\nCorreo:gerenciainformatica@registraduria.gov.co"]
[null,"40101701\n46191601\n50202301\n56101500\n56101700\n72101506\n72101507\n72101511\n72101516\n72154066\n12352100\n42132200\n14111700\n53131600\n42295101\n56122004\n47131702\n47131704\n47131711\n78181701\n72101509\n78181507\n41112224\n42131606\n72102103\n72153500","Adquisición de bienes y servicios con destino a las Delegaciones Departamentales y Registraduría Distrital.","Febrero",11,"CONTRATACIÓN_MÍNIMA_CUANTÍA","RECURSOS PROPIOS",384301652,384301652,"No","N. A. ","Dirección Administrativa - Grupo Compras\nTelefono:2202880 ext 1431\nCorreo: zjhoyos@registraduria.gov.co"]
[null,"77102002 \n77121507","Contratar los servicios para el cálculo de inventario de emisiones de gases de efecto invernadero, Plan de Descarbonización y Compensación de Emisiones (sede central).","Marzo",5,"CONTRATACIÓN_MÍNIMA_CUANTÍA","RECURSOS PROPIOS",29178205,29178205,"No","N. A. "," Oficina de Planeación\nTeléfono: 2202880 ext. 1352\nCorreo: oficinadeplaneacion@registraduria.gov.co"]
[null,47121702,"Adquisición de puntos ecológico para separación en la fuente de residuos.","Febrero",1,"CONTRATACIÓN_MÍNIMA_CUANTÍA","RECURSOS PROPIOS",11281000,11281000,"No","N. A. "," Oficina de Planeación\nTeléfono: 2202880 ext. 1352\nCorreo: oficinadeplaneacion@registraduria.gov.co"]
[null,"72101506 \n72154010","Contratar la prestación del servicio de mantenimiento preventivo y correctivo incluida bolsa de repuestos del ascensor tipo carga marca ATLAS, ubicado en la Registraduría Nacional del Estado Civil, sede CAN, Avenida Calle 26 No. 51-50.","Marzo",9,"CONTRATACIÓN_MÍNIMA_CUANTÍA","RECURSOS PROPIOS",14952350,{"$f":"+H57","v":14952350},"No","N. A. ","Dirección Administrativa - Grupo de Mantenimiento y Construcciones\nTeléfono: 2202880 ex.t 1308\nCorreo:ccsepulveda@registraduria.gov.co"]
[null,"72101507 \n72121100\n72121400","Contratar bajo el sistema de precios unitarios fijos sin fórmula de reajuste la adecuación y mantenimiento de la sede de la Delegación Departamental de Santander - Bucaramanga.","Marzo",4,"SELECCIÓN_ABREVIADA","RECURSOS PROPIOS",172629387,172629387,"No","N. A. ","Dirección Administrativa - Grupo de Mantenimiento y Construcciones\nTeléfono: 2202880 ex.t 1308\nCorreo:ccsepulveda@registraduria.gov.co"]
[null,"72101507 \n72121100\n72121400","Contratar bajo el sistema de precios unitarios fijos sin fórmula de reajuste la adecuación y mantenimiento de la sede de la Registraduría Municipal de Carepa - Antioquia.","Marzo",2,"CONTRATACIÓN_MÍNIMA_CUANTÍA","RECURSOS PROPIOS",64810885,64810885,"No","N. A. ","Dirección Administrativa - Grupo de Mantenimiento y Construcciones\nTeléfono: 2202880 ex.t 1308\nCorreo:ccsepulveda@registraduria.gov.co"]
[null,"72101507 \n72121100\n72121400","Contratar bajo el sistema de precios unitarios fijos sin fórmula de reajuste la adecuación y mantenimiento de la sede de la Registraduría Municipal de San José del Fragua - Caquetá.","Marzo",3,"SELECCIÓN_ABREVIADA","RECURSOS PROPIOS",226911798,226911798,"No","N. A. ","Dirección Administrativa - Grupo de Mantenimiento y Construcciones\nTeléfono: 2202880 ex.t 1308\nCorreo:ccsepulveda@registraduria.gov.co"]
[null,"72101507 \n72121100\n72121400","Contratar bajo el sistema de precios unitarios fijos sin fórmula de reajuste la adecuación y mantenimiento de la sede de la Delegación Departamental de Casanare - Yopal.","Marzo",3,"SELECCIÓN_ABREVIADA","RECURSOS PROPIOS",192448904,192448904,"No","N. A. ","Dirección Administrativa - Grupo de Mantenimiento y Construcciones\nTeléfono: 2202880 ex.t 1308\nCorreo:ccsepulveda@registraduria.gov.co"]
[null,"72101507 \n72121100\n72121400","Contratar bajo el sistema de precios unitarios fijos sin fórmula de reajuste la adecuación y mantenimiento de la sede de la Registraduría Especial de Puerto Inírida - Guainía.","Marzo",5,"SELECCIÓN_ABREVIADA","RECURSOS PROPIOS",419517510,419517510,"No","N. A. ","Dirección Administrativa - Grupo de Mantenimiento y Construcciones\nTeléfono: 2202880 ex.t 1308\nCorreo:ccsepulveda@registraduria.gov.co"]
[null,"56101701 \n72153606","Adecuación con mobiliario de oficina para diferentes sedes a nivel nacional.","Febrero",1,"CONTRATACIÓN_MÍNIMA_CUANTÍA","RECURSOS PROPIOS",1017830580,1017830580,"No","N. A. ","Dirección Administrativa - Grupo de Mantenimiento y Construcciones\nTeléfono: 2202880 ex.t 1308\nCorreo:ccsepulveda@registraduria.gov.co"]
[null,"72101507 \n72121100\n72121400","Contratar bajo el sistema de precios unitarios fijos sin fórmula de reajuste la adecuación y mantenimiento de sedes en comodato de la Registraduría Nacional del Estado Civil a nivel nacional.","Febrero",1,"CONTRATACIÓN_MÍNIMA_CUANTÍA","RECURSOS PROPIOS",1619120000,1619120000,"No","N. A. ","Dirección Administrativa - Grupo de Mantenimiento y Construcciones\nTeléfono: 2202880 ex.t 1308\nCorreo:ccsepulveda@registraduria.gov.co"]
[null,"40101701 \n72101511","Prestar los servicios para la instalación de aires acondicionados en diferentes sedes a nivel nacional.","Febrero",2,"CONTRATACIÓN_MÍNIMA_CUANTÍA","RECURSOS PROPIOS",840000000,840000000,"No","N. A. ","Dirección Administrativa - Grupo de Mantenimiento y Construcciones\nTeléfono: 2202880 ex.t 1308\nCorreo:ccsepulveda@registraduria.gov.co"]
[null,"72101509 \n72154022 \n72154056","Contratar el servicio de mantenimiento preventivo y correctivo incluidos los repuestos, para red contra incendios y el sistema hidráulico para la Registraduría Nacional del Estado Civil sede CAN en la ciudad de Bogotá D.C.","Marzo",9,"CONTRATACIÓN_MÍNIMA_CUANTÍA","RECURSOS PROPIOS",66461262,66461262,"No","N. A. ","Dirección Administrativa - Grupo de Mantenimiento y Construcciones\nTeléfono: 2202880 ex.t 1308\nCorreo:ccsepulveda@registraduria.gov.co"]
[null,"72101507 \n72121100\n72121400","Contratar bajo el sistema de precios unitarios fijos sin fórmula de reajuste la adecuación y mantenimiento de las sedes de la Registraduría Municipal de Sabanagrande - Atlántico y Municipal de Villanueva - Bolívar.","Marzo",3,"SELECCIÓN_ABREVIADA","RECURSOS PROPIOS",350000000,350000000,"No","N. A. ","Dirección Administrativa - Grupo de Mantenimiento y Construcciones\nTeléfono: 2202880 ex.t 1308\nCorreo:ccsepulveda@registraduria.gov.co"]
[null,81101500,"Contratar la interventoría técnica, administrativa, legal, ambiental y financiera a la obra de “Adecuación y mantenimiento de la sede de la Delegación Departamental de Casanare, Yopal”","Abril",3,"CONTRATACIÓN_MÍNIMA_CUANTÍA","RECURSOS PROPIOS",24490200,{"$f":"+H68","v":24490200},"No","N. A. ","Dirección Administrativa - Grupo de Mantenimiento y Construcciones\nTeléfono: 2202880 ex.t 1308\nCorreo:ccsepulveda@registraduria.gov.co"]
[null,"72101507 \n72121100\n72121400","Contratar bajo el sistema de precios unitarios fijos sin fórmula de reajuste la adecuación y mantenimiento de las sedes de la Registraduría Municipal de La Paz - Cesar y Municipal de San Diego - Cesar.","Marzo",4,"SELECCIÓN_ABREVIADA","RECURSOS PROPIOS",400000000,400000000,"No","N. A. ","Dirección Administrativa - Grupo de Mantenimiento y Construcciones\nTeléfono: 2202880 ex.t 1308\nCorreo:ccsepulveda@registraduria.gov.co"]
[null,"72101507 \n72121100\n72121400","Contratar bajo el sistema de precios unitarios fijos sin fórmula de reajuste la adecuación y mantenimiento de las sedes de la Delegación Departamental y Registraduría Especial de Quibdó - Chocó y Registraduría Municipal de Carmen de Atrato - Chocó.","Marzo",5,"SELECCIÓN_ABREVIADA","RECURSOS PROPIOS",578499665,578499665,"No","N. A. ","Dirección Administrativa - Grupo de Mantenimiento y Construcciones\nTeléfono: 2202880 ex.t 1308\nCorreo:ccsepulveda@registraduria.gov.co"]
[null,"72101507 \n72121100\n72121400","Contratar bajo el sistema de precios unitarios fijos sin fórmula de reajuste la adecuación y mantenimiento de las sedes de la Registraduría Municipal de Planeta Rica - Córdoba, Municipal de San Bernardo del Viento - Córdoba y Municipal de San Carlos - Córdoba.","Marzo",4,"SELECCIÓN_ABREVIADA","RECURSOS PROPIOS",600000000,600000000,"No","N. A. ","Dirección Administrativa - Grupo de Mantenimiento y Construcciones\nTeléfono: 2202880 ex.t 1308\nCorreo:ccsepulveda@registraduria.gov.co"]
[null,"72101507 \n72121100\n72121400","Contratar bajo el sistema de precios unitarios fijos sin fórmula de reajuste la adecuación y mantenimiento de las sedes de la Registraduría Municipal de Anolaima - Cundinamarca, Municipal de Belén - Boyacá, Municipal de Chiquinquirá - Boyacá, Municipal de Lenguazaque - Cundinamarca, Municipal de Pesca - Boyacá y Municipal de Zipaquirá - Cundinamarca.","Marzo",4,"SELECCIÓN_ABREVIADA","RECURSOS PROPIOS",517289653,517289653,"No","N. A. ","Dirección Administrativa - Grupo de Mantenimiento y Construcciones\nTeléfono: 2202880 ex.t 1308\nCorreo:ccsepulveda@registraduria.gov.co"]
[null,"72101507 \n72121100\n72121400","Contratar bajo el sistema de precios unitarios fijos sin fórmula de reajuste la adecuación y mantenimiento de las sedes de la Registraduría Municipal de Matanza - Santander, Municipal de Socorro - Santander y Municipal de Suratá - Santander.","Marzo",3,"SELECCIÓN_ABREVIADA","RECURSOS PROPIOS",241521238,241521238,"No","N. A. ","Dirección Administrativa - Grupo de Mantenimiento y Construcciones\nTeléfono: 2202880 ex.t 1308\nCorreo:ccsepulveda@registraduria.gov.co"]
[null,"72101507 \n72121100\n72121400","Contratar bajo el sistema de precios unitarios fijos sin fórmula de reajuste la adecuación y mantenimiento de las sedes de la Registraduría Municipal de La Unión – Sucre y Municipal de Sincé - Sucre.","Marzo",4,"SELECCIÓN_ABREVIADA","RECURSOS PROPIOS",400000000,400000000,"No","N. A. ","Dirección Administrativa - Grupo de Mantenimiento y Construcciones\nTeléfono: 2202880 ex.t 1308\nCorreo:ccsepulveda@registraduria.gov.co"]
[null,"72101507 \n72121100\n72121400","Contratar bajo el sistema de precios unitarios fijos sin fórmula de reajuste la adecuación y mantenimiento de las sedes de la Delegación Departamental- Tolima y Municipal de Saldaña - Tolima.","Marzo",3,"SELECCIÓN_ABREVIADA","RECURSOS PROPIOS",185636704,185636704,"No","N. A. ","Dirección Administrativa - Grupo de Mantenimiento y Construcciones\nTeléfono: 2202880 ex.t 1308\nCorreo:ccsepulveda@registraduria.gov.co"]
[null,"72101507 \n72121100\n72121400","Contratar bajo el sistema de precios unitarios fijos sin fórmula de reajuste la adecuación y mantenimiento de las sedes de la Registraduría Especial de Buga - Valle del Cauca, Especial de Dosquebradas - Risaralda y Municipal de Yumbo - Valle del Cauca.","Marzo",4,"SELECCIÓN_ABREVIADA","RECURSOS PROPIOS",619225389,619225389,"No","N. A. ","Dirección Administrativa - Grupo de Mantenimiento y Construcciones\nTeléfono: 2202880 ex.t 1308\nCorreo:ccsepulveda@registraduria.gov.co"]
[null,"72101507 \n72121100\n72121400","Contratar bajo el sistema de precios unitarios fijos sin fórmula de reajuste la adecuación y mantenimiento del Edificio de la Registraduría Nacional sede CAN.","Marzo",5,"LICITACIÓN_OBRA_PÚBLICA","RECURSOS PROPIOS",1514953812,1514953812,"No","N. A. ","Dirección Administrativa - Grupo de Mantenimiento y Construcciones\nTeléfono: 2202880 ex.t 1308\nCorreo:ccsepulveda@registraduria.gov.co"]
[null,"72101507 \n72121100\n72121400","Contratar bajo el sistema de precios unitarios fijos sin fórmula de reajuste la adecuación y mantenimiento de las sedes de la Registraduría Auxiliar de Bosa - Bogotá, Distrital de Bogotá - Bogotá (Edificio Córdoba) y Municipal de Madrid - Cundinamarca.","Marzo",4,"SELECCIÓN_ABREVIADA","RECURSOS PROPIOS",610000000,610000000,"No","N. A. ","Dirección Administrativa - Grupo de Mantenimiento y Construcciones\nTeléfono: 2202880 ex.t 1308\nCorreo:ccsepulveda@registraduria.gov.co"]
[null,72101507,"Interventoría técnica, administrativa, legal, ambiental y financiera a la obra de “Adecuación y mantenimiento de las sedes de la Registraduría Municipal de Sabanagrande - Atlántico y Municipal de Villanueva – Bolívar”.","Marzo",3,"CONTRATACIÓN_MÍNIMA_CUANTÍA","RECURSOS PROPIOS",44000000,44000000,"No","N. A. ","Dirección Administrativa - Grupo de Mantenimiento y Construcciones\nTeléfono: 2202880 ex.t 1308\nCorreo:ccsepulveda@registraduria.gov.co"]
[null,72101507,"Interventoría técnica, administrativa, legal, ambiental y financiera a la obra de “Adecuación y mantenimiento de las sedes de la Registraduría Municipal de La Paz - Cesar y Municipal de San Diego – Cesar”.","Marzo",4,"CONTRATACIÓN_MÍNIMA_CUANTÍA","RECURSOS PROPIOS",44000000,44000000,"No","N. A. ","Dirección Administrativa - Grupo de Mantenimiento y Construcciones\nTeléfono: 2202880 ex.t 1308\nCorreo:ccsepulveda@registraduria.gov.co"]
[null,81101500,"Contratar la interventoría técnica, administrativa, legal, ambiental y financiera a la obra de “Adecuación y mantenimiento de la sede de la Registraduría Municipal de San José del Fragua, Caquetá”","Abril",3,"CONTRATACIÓN_MÍNIMA_CUANTÍA","RECURSOS PROPIOS",21691320,{"$f":"+H81","v":21691320},"No","N. A. ","Dirección Administrativa - Grupo de Mantenimiento y Construcciones\nTeléfono: 2202880 ex.t 1308\nCorreo:ccsepulveda@registraduria.gov.co"]
[null,72101507,"Interventoría técnica, administrativa, legal, ambiental y financiera a la obra de “Adecuación y mantenimiento de la sede de la Delegación Departamental y Registraduría Especial de Popayán – Cauca”.","Marzo",3,"CONTRATACIÓN_MÍNIMA_CUANTÍA","RECURSOS PROPIOS",30000000,30000000,"No","N. A. ","Dirección Administrativa - Grupo de Mantenimiento y Construcciones\nTeléfono: 2202880 ex.t 1308\nCorreo:ccsepulveda@registraduria.gov.co"]
[null,72101507,"Interventoría técnica, administrativa, legal, ambiental y financiera a la obra de “Adecuación y mantenimiento de las sedes de la Delegación Departamental y Registraduría Especial de Quibdó - Chocó y Registraduría Municipal de Carmen de Atrato – Chocó”.","Marzo",5,"CONTRATACIÓN_MÍNIMA_CUANTÍA","RECURSOS PROPIOS",50000000,50000000,"No","N. A. ","Dirección Administrativa - Grupo de Mantenimiento y Construcciones\nTeléfono: 2202880 ex.t 1308\nCorreo:ccsepulveda@registraduria.gov.co"]
[null,72101507,"Interventoría técnica, administrativa, legal, ambiental y financiera a la obra de “Adecuación y mantenimiento de las sedes de la Registraduría Municipal de Anolaima - Cundinamarca, Municipal de Belén - Boyacá, Municipal de Chiquinquirá - Boyacá, Municipal de Lenguazaque - Cundinamarca, Municipal de Pesca – Boyacá, Municipal de Zipaquirá - Cundinamarca, Auxiliar de Bosa, Distrital de Bogotá- Bogotá (Edificio Córdoba) y Municipal de Madrid – Cundinamarca”.","Marzo",4,"CONCURSO_MÉRITOS_ABIERTO","RECURSOS PROPIOS",198000000,198000000,"No","N. A. ","Dirección Administrativa - Grupo de Mantenimiento y Construcciones\nTeléfono: 2202880 ex.t 1308\nCorreo:ccsepulveda@registraduria.gov.co"]
[null,81101500,"Contratar la interventoría técnica, administrativa, legal, ambiental y financiera a la obra de “Adecuación y mantenimiento de la sede de la Registraduría Especial de Puerto Inírida - Guainía”","Abril",4,"CONTRATACIÓN_MÍNIMA_CUANTÍA","RECURSOS PROPIOS",32653600,{"$f":"+H85","v":32653600},"No","N. A. ","Dirección Administrativa - Grupo de Mantenimiento y Construcciones\nTeléfono: 2202880 ex.t 1308\nCorreo:ccsepulveda@registraduria.gov.co"]
[null,72101507,"Interventoría técnica, administrativa, legal, ambiental y financiera a la obra de “Adecuación y mantenimiento de las sedes de la Delegación Departamental de Nariño, Especial de Buga, Municipal de Yumbo - Valle del Cauca y Municipal de Dosquebradas – Risaralda”.","Marzo",5,"CONCURSO_MÉRITOS_ABIERTO","RECURSOS PROPIOS",102000000,102000000,"No","N. A. ","Dirección Administrativa - Grupo de Mantenimiento y Construcciones\nTeléfono: 2202880 ex.t 1308\nCorreo:ccsepulveda@registraduria.gov.co"]
[null,72101507,"Interventoría técnica, administrativa, legal, ambiental y financiera a la obra de “Adecuación y mantenimiento de las sedes de la Registraduría Municipal de Barrancabermeja - Santander, Delegación Departamental de Bucaramanga- Santander, Municipal de Matanza - Santander, Municipal de Socorro - Santander y Municipal de Suratá – Santander”.","Marzo",4,"CONCURSO_MÉRITOS_ABIERTO","RECURSOS PROPIOS",146000000,146000000,"No","N. A. ","Dirección Administrativa - Grupo de Mantenimiento y Construcciones\nTeléfono: 2202880 ex.t 1308\nCorreo:ccsepulveda@registraduria.gov.co"]
[null,72101507,"Interventoría técnica, administrativa, legal, ambiental y financiera a la obra de “Adecuación y mantenimiento de las sedes de la Registraduría Municipal de La Unión - Sucre y Municipal de Sincé – Sucre”.","Marzo",4,"CONTRATACIÓN_MÍNIMA_CUANTÍA","RECURSOS PROPIOS",44000000,44000000,"No","N. A. ","Dirección Administrativa - Grupo de Mantenimiento y Construcciones\nTeléfono: 2202880 ex.t 1308\nCorreo:ccsepulveda@registraduria.gov.co"]
[null,72101507,"Interventoría técnica, administrativa, legal, ambiental y financiera a la obra de “Adecuación y mantenimiento de las sedes de la Registraduría Municipal de Planeta Rica - Córdoba, Municipal de San Bernardo del Viento - Córdoba y Municipal de San Carlos - Córdoba, Especial de Sincelejo – Sucre”.","Marzo",4,"CONCURSO_MÉRITOS_ABIERTO","RECURSOS PROPIOS",88000000,88000000,"No","N. A. ","Dirección Administrativa - Grupo de Mantenimiento y Construcciones\nTeléfono: 2202880 ex.t 1308\nCorreo:ccsepulveda@registraduria.gov.co"]
[null,72101507,"Interventoría técnica, administrativa, legal, ambiental y financiera a la obra de “Adecuación y mantenimiento de las sedes de la Delegación Departamental del Tolima y Municipal de Saldaña – Tolima”.","Marzo",3,"CONTRATACIÓN_MÍNIMA_CUANTÍA","RECURSOS PROPIOS",62000000,62000000,"No","N. A. ","Dirección Administrativa - Grupo de Mantenimiento y Construcciones\nTeléfono: 2202880 ex.t 1308\nCorreo:ccsepulveda@registraduria.gov.co"]
[null,72101507,"Interventoría técnica, administrativa, legal, ambiental y financiera a la obra de “Adecuación y mantenimiento de la sede de la Delegación y Registraduría Especial de Puerto Carreño – Vichada”.","Marzo",4,"CONTRATACIÓN_MÍNIMA_CUANTÍA","RECURSOS PROPIOS",40000000,40000000,"No","N. A. ","Dirección Administrativa - Grupo de Mantenimiento y Construcciones\nTeléfono: 2202880 ex.t 1308\nCorreo:ccsepulveda@registraduria.gov.co"]
[null,72101507,"Interventoría técnica, administrativa, legal, ambiental y financiera a la obra de “Adecuación y mantenimiento de la sede del edificio de la Registraduría Nacional sede CAN”.","Marzo",5,"CONCURSO_MÉRITOS_ABIERTO","RECURSOS PROPIOS",100000000,100000000,"No","N. A. ","Dirección Administrativa - Grupo de Mantenimiento y Construcciones\nTeléfono: 2202880 ex.t 1308\nCorreo:ccsepulveda@registraduria.gov.co"]
[null,"72101507 \n72121100\n72121400","Contratar bajo el sistema de precios unitarios fijos sin fórmula de reajuste la adecuación y mantenimiento de la sede de la Registraduría Especial de Sincelejo - Sucre.","Marzo",3,"SELECCIÓN_ABREVIADA","RECURSOS PROPIOS",300000000,300000000,"No","N. A. ","Dirección Administrativa - Grupo de Mantenimiento y Construcciones\nTeléfono: 2202880 ex.t 1308\nCorreo:ccsepulveda@registraduria.gov.co"]
[null,"72101507 \n72121100\n72121400","Contratar bajo el sistema de precios unitarios fijos sin fórmula de reajuste la adecuación y mantenimiento de las sedes de la Registraduría a nivel nacional (Mantenimientos preventivos).","Marzo",1,"CONTRATACIÓN_MÍNIMA_CUANTÍA","RECURSOS PROPIOS",392200000,392200000,"No","N. A. ","Dirección Administrativa - Grupo de Mantenimiento y Construcciones\nTeléfono: 2202880 ex.t 1308\nCorreo:ccsepulveda@registraduria.gov.co"]
[null,"84131500\n84131600","Contratar el seguro que ampare los vehículos aéreos no tripulados de propiedad de la Registraduría Nacional del Estado Civil y su Fondo Rotatorio, y/o los que estén bajo su responsabilidad, custodia, tenencia o control.","Abril",24,"SELECCIÓN_ABREVIADA","RECURSOS PROPIOS",148637056,148637056,"No","N. A. ","Dirección Administrativa - Gestión de Recursos Físicos\n Telefono:2202880 ext 1198 \nCorreo: fhbenitez@registraduria.gov.co"]
[null,15101506,"Contratar el suministro de combustible del parque automotor de la Entidad.","Mayo",12,"SELECCIÓN_ABREVIADA\nAMP - CCE","RECURSOS PROPIOS",400514759,194424640,"SI","No solicitadas","Dirección Administrativa - Coordinacion Grupo Transporte\nTeléfono: 2202880 ext. 1027\nCorreo: gtransporte@registraduria.gov.co"]
[null,"76111500\n90101700\n72102100\n76101500\n76111600","Contratar la prestación del servicio de aseo, cafetería y servicios complementarios en las sedes de la Registraduría Nacional del Estado Civil ubicadas en la ciudad de Bogotá, Soacha y Chía - Cundinamarca.","Julio",24,"LICITACIÓN","RECURSOS PROPIOS",10954969150,791049118,"SI","No solicitadas","Dirección Administrativa - Gestión de Recursos Físicos\n Telefono:2202880 ext 1198 \nCorreo: fhbenitez@registraduria.gov.co"]
[null,"84131501\n84131503\n84131511\n84131512\n84131507\n84131516\n84131601","Contratar los seguros requeridos para la protección de los bienes e intereses patrimoniales de propiedad y de aquellos por los cuales son legalmente responsables la Registraduría Nacional del Estado Civil y su Fondo Rotatorio en el territorio nacional y en los Consulados, y de los que sea o fuere legalmente responsable y que estén bajo su responsabilidad y custodia y aquellos que sean adquiridos, para desarrollar las funciones inherentes a su actividad y el seguro colectivo de vida grupo de los servidores que prestan sus servicios a la Registraduría Nacional del Estado Civil.","Julio",24,"LICITACIÓN","RECURSOS PROPIOS",17255507722,938824515,"SI","No solicitadas","Dirección Administrativa - Gestión de Recursos Físicos\n Telefono:2202880 ext 1198 \nCorreo: fhbenitez@registraduria.gov.co"]
[null,78181507,"Mantenimiento correctivo y preventivo del parque automotor de la Entidad.","Julio",12,"LICITACIÓN","RECURSOS PROPIOS",661382659,321059543,"SI","No solicitadas","Dirección Administrativa - Coordinacion Grupo Transporte\nTeléfono: 2202880 ext. 1027\nCorreo: gtransporte@registraduria.gov.co"]
[null,92121504,"Prestar los servicios de vigilancia y seguridad privada para la Entidad, en las sedes e inmuebles de la Registraduría Nacional del Estado Civil en el territorio nacional.","Agosto",24,"LICITACIÓN","RECURSOS PROPIOS",89213420010,5530516304,"SI","No solicitadas","Dirección Administrativa - Asesoría de Seguridad\nTeléfono: 2202880 ext. 1060 \nCorreo: asesoriaseguridad@registraduria.gov.co"]
[null,"78102203 \n78102204 \n78101802 \n78101900","Contratar la prestación de servicios para el transporte de objetos postales (mensajería), a nivel nacional e internacional, y de carga a nivel nacional.","Agosto",24,"LICITACIÓN","RECURSOS PROPIOS",14620784918,1071119776,"SI","No solicitadas","Dirección Administrativa - Gestión de Correspondencia\nTeléfono: 2202880 ext. 1043\nCorreo: waguerrero@registraduria.gov.co"]
[null,78131800,"Contratar la prestación del servicio de almacenamiento, guarda y custodia de cajas que contienen documentos de identificación, archivadores metálicos que contienen rollos de microfilmación, documentos administrativos, algunos de los cuales conforman el archivo histórico de la Entidad, medios magnéticos, incluyendo los servicios adicionales de consulta y transporte.","Agosto",20,"LICITACIÓN","RECURSOS PROPIOS",2917088355,115289632,"SI","No solicitadas","Dirección Administrativa - Coordinación de Gestión Documental y Archivos \nTeléfono: 2202880 ext. 1184\nCorreo: nrodriguez@registraduria.gov.co"]
[null,"43201834\n43212201\n43232701\n43233201\n43233415","Renovar el licenciamiento VMware de la infraestructura tecnológica de los servidores de la Registraduría Nacional del Estado Civil.","Marzo",1,"SELECCIÓN_ABREVIADA_SUBASTA","RECURSOS PROPIOS",938374954,938374954,"N/A","N. A. ","Gerencia de Informática\nTeléfono: 2202880\nCorreo:gerenciainformatica@registraduria.gov.co"]
[null,"72101507 \n72121100\n72121400","Contratar bajo el sistema de precios unitarios fijos sin fórmula de reajuste la adecuación y mantenimiento de la sede de la Delegación Departamental y Registraduría Especial de Popayán - Cauca.","Abril",3,"SELECCIÓN_ABREVIADA","RECURSOS PROPIOS",299999999,{"$f":"+H104","v":299999999},"No","N. A. ","Dirección Administrativa - Grupo de Mantenimiento y Construcciones\nTeléfono: 2202880 ex.t 1308\nCorreo:ccsepulveda@registraduria.gov.co"]
[null,"72101507 \n72121100\n72121400","Contratar bajo el sistema de precios unitarios fijos sin fórmula de reajuste la adecuación y mantenimiento de la sede de la Delegación Departamental de Nariño.","Abril",3,"SELECCIÓN_ABREVIADA","RECURSOS PROPIOS",211993121,{"$f":"+H105","v":211993121},"No","N. A. ","Dirección Administrativa - Grupo de Mantenimiento y Construcciones\nTeléfono: 2202880 ex.t 1308\nCorreo:ccsepulveda@registraduria.gov.co"]
[null,"72101507 \n72121100\n72121400","Contratar bajo el sistema de precios unitarios fijos sin fórmula de reajuste la adecuación y mantenimiento de la sede de la Registraduría Especial de Barrancabermeja - Santander","Abril",4,"SELECCIÓN_ABREVIADA","RECURSOS PROPIOS",561289416,561289416,"No","N. A. ","Dirección Administrativa - Grupo de Mantenimiento y Construcciones\nTeléfono: 2202880 ex.t 1308\nCorreo:ccsepulveda@registraduria.gov.co"]
[null,"72101507 \n72121100\n72121400","Contratar bajo el sistema de precios unitarios fijos sin fórmula de reajuste la adecuación y mantenimiento de la sede de la Delegación Departamental y Registraduría Especial de Puerto Carreño - Vichada.","Abril",4,"SELECCIÓN_ABREVIADA","RECURSOS PROPIOS",399998680,{"$f":"+H107","v":399998680},"No","N. A. ","Dirección Administrativa - Grupo de Mantenimiento y Construcciones\nTeléfono: 2202880 ex.t 1308\nCorreo:ccsepulveda@registraduria.gov.co"]
[null,72101507,"Interventoría técnica, administrativa, legal, ambiental y financiera a la obra de “Adecuación y mantenimiento de la sede de la Registraduría Municipal de Carepa – Antioquia”","Marzo",2,"CONTRATACIÓN_MÍNIMA_CUANTÍA","RECURSOS PROPIOS",12828200,{"$f":"+H108","v":12828200},"No","N. A. ","Dirección Administrativa - Grupo de Mantenimiento y Construcciones\nTeléfono: 2202880 ex.t 1308\nCorreo:ccsepulveda@registraduria.gov.co"]
[null,31162800,"Adquisición de materiales, elementos y/o insumos de ferretería, electricidad y construcción necesarios para el mantenimiento y las reparaciones locativas de la Registraduría Nacional del Estado Civil sede CAN, en la ciudad de Bogotá D.C","Abril",1,"SELECCIÓN_ABREVIADA","RECURSOS PROPIOS",129201076,{"$f":"+H109","v":129201076},"No","N. A. ","Dirección Administrativa - Grupo de Mantenimiento y Construcciones\nTeléfono: 2202880 ex.t 1308\nCorreo:ccsepulveda@registraduria.gov.co"]
[null,72151505,"Contratar el suministro e instalación de la acometida para la planta eléctrica marca CUMMINS, modelo C200D6E, ubicada en la sede CAN de la Registraduría Nacional del Estado Civil","Marzo",1,"CONTRATACIÓN_MÍNIMA_CUANTÍA","RECURSOS PROPIOS",25088944,25088944,"No","N. A. ","Dirección Administrativa - Grupo de Mantenimiento y Construcciones\nTeléfono: 2202880 ex.t 1308\nCorreo:ccsepulveda@registraduria.gov.co"]
[null,81101500,"Contratar la interventoría técnica, administrativa, legal, ambiental y financiera a la obra de “Adecuación y mantenimiento de la sede de la Delegación Departamental de Santander”","Abril",3,"CONTRATACIÓN_MÍNIMA_CUANTÍA","RECURSOS PROPIOS",18892440,18892440,"No","N. A. ","Dirección Administrativa - Grupo de Mantenimiento y Construcciones\nTeléfono: 2202880 ex.t 1308\nCorreo:ccsepulveda@registraduria.gov.co"]
[null,72101511,"Contratar el servicio de mantenimiento preventivo y correctivo incluidos los repuestos para los equipos de aire acondicionado, para la Registraduría Nacional del Estado Civil sede CAN en la cuidad de Bogotá D.C.","Abril",9,"CONTRATACIÓN_MÍNIMA_CUANTÍA","RECURSOS PROPIOS",57471050,57471050,"No","N. A. ","Dirección Administrativa - Grupo de Mantenimiento y Construcciones\nTeléfono: 2202880 ex.t 1308\nCorreo:ccsepulveda@registraduria.gov.co"]
[null,null,null,null,null,null,"TOTAL",{"$f":"SUM(H22:H112)","v":194050636292},{"$f":"SUM(I22:I112)","v":66989252247}]

{"sheet":"Hoja3","index":1,"n_rows":2,"n_cols":1,"rows_kept":2,"cut":false,"hidden":true,"merged":[]}
["Adquisición de bienes y servicios con destino a las Delegaciones Departamentales y RegistradurÍa Distrital. "]
[{"$f":"+UPPER(A1)","v":"ADQUISICIÓN DE BIENES Y SERVICIOS CON DESTINO A LAS DELEGACIONES DEPARTAMENTALES Y REGISTRADURÍA DISTRITAL. "}]